fUST/lending_fUST_20250625
["ID","MTS","AMOUNT","RATE_DAILY","PERIOD"]
[367493023,1750822251604,-1500.0,0.00018626,2]
[367493024,1750822251613,-1500.0,0.00018647,2]
[367493025,1750822251625,-1019.76312072,0.00018652,2]
[367493026,1750822251634,-1003.57020271,0.00018654,2]
[367493027,1750822251644,-1011.55355153,0.00018676,2]
[367493028,1750822251655,-1500.0,0.00018687,2]
[367493029,1750822251664,-183.27479876,0.00018691,2]
[367493030,1750822251673,-179.89206476,0.0001872,2]
[367493031,1750822251683,-3070.00849568,0.00018728,2]
[367493032,1750822251693,-2000.0,0.000188,2]
[367493033,1750822251702,-285.42035987,0.00018859,2]
[367493034,1750822251712,-1104.74,0.00018859,2]
[367493035,1750822251722,-1267.06,0.00018859,2]
[367493036,1750822251732,-1441.04,0.00018859,2]
[367493037,1750822251741,-460.0,0.00018859,2]
[367493038,1750822251751,-668.7,0.00018859,2]
[367493039,1750822251762,-460.0,0.00018859,2]
[367493040,1750822251771,-703.01,0.00018859,2]
[367493041,1750822251781,-1130.96,0.0001886,2]
[367493042,1750822251791,-195.61,0.0001886,2]
[367493043,1750822251801,-460.0,0.0001886,2]
[367493044,1750822251811,-893.13,0.0001886,2]
[367493045,1750822251820,-460.0,0.0001886,2]
[367493046,1750822251829,-460.0,0.0001886,2]
[367493047,1750822251838,-460.0,0.0001886,2]
[367493048,1750822251848,-342.78,0.0001886,2]
[367493049,1750822251858,-460.0,0.0001886,2]
[367493050,1750822251868,-460.0,0.0001886,2]
[367493051,1750822251878,-460.0,0.0001886,2]
[367493052,1750822251887,-460.0,0.0001886,2]
[367493053,1750822251897,-460.0,0.0001886,2]
[367493054,1750822251907,-2120.3,0.0001886,2]
[367493055,1750822251916,-546.46150194,0.00018861,2]
[367493056,1750822251925,-460.0,0.00018861,2]
[367493057,1750822251935,-460.0,0.00018861,2]
[367493058,1750822251944,-460.0,0.00018861,2]
[367493059,1750822251953,-460.0,0.00018861,2]
[367493060,1750822251962,-460.0,0.00018861,2]
[367493061,1750822251972,-486.02,0.00018861,2]
[367493062,1750822251981,-1211.94,0.00018861,2]
[367493063,1750822251991,-460.0,0.00018861,2]
[367493064,1750822252000,-460.0,0.00018861,2]
[367493065,1750822252009,-460.0,0.00018861,2]
[367493066,1750822252019,-1100.59,0.00018861,2]
[367493067,1750822252030,-460.0,0.00018861,2]
[367493068,1750822252040,-460.0,0.00018861,2]
[367493069,1750822252050,-460.0,0.00018861,2]
[367493070,1750822252059,-746.15,0.00018861,2]
[367493071,1750822252069,-1150.89,0.00018861,2]
[367493072,1750822252081,-274.7,0.00018861,2]
[367493073,1750822252091,-460.0,0.00018861,2]
[367493074,1750822252102,-369.72,0.00018861,2]
[367493075,1750822252113,-621.42,0.00018861,2]
[367493076,1750822252123,-632.11,0.00018861,2]
[367493077,1750822252132,-187.82,0.00018861,2]
[367493078,1750822252142,-460.0,0.00018861,2]
[367493079,1750822252151,-307.59,0.00018861,2]
[367493080,1750822252160,-460.0,0.00018862,2]
[367493081,1750822252170,-460.0,0.00018862,2]
[367493082,1750822252179,-460.0,0.00018862,2]
[367493083,1750822252189,-460.0,0.00018863,2]
[367493084,1750822252198,-460.0,0.00018863,2]
[367493085,1750822252207,-627.7,0.00018863,2]
[367493086,1750822252218,-460.0,0.00018863,2]
[367493087,1750822252228,-4892.1019972,0.000189,2]
[367493088,1750822252238,-9080.72125001,0.00019,2]
[367493089,1750822252248,-3070.00849568,0.00019003,2]
[367493090,1750822252258,-1104.74,0.00019133,2]
[367493091,1750822252267,-1267.06,0.00019133,2]
[367493092,1750822252276,-1441.04,0.00019133,2]
[367493093,1750822252285,-460.0,0.00019133,2]
[367493094,1750822252294,-668.7,0.00019133,2]
[367493095,1750822252303,-374.42727803,0.00019133,2]
[367493096,1750822252312,-703.01,0.00019133,2]
[367493097,1750822252322,-1130.96,0.00019134,2]
[367493098,1750822252331,-460.0,0.00019134,2]
[367493099,1750822252340,-893.13,0.00019134,2]
[367493100,1750822252349,-460.0,0.00019134,2]
[367493101,1750822252358,-460.0,0.00019134,2]
[367493102,1750822252367,-447.0,0.00019134,2]
[367493103,1750822252376,-460.0,0.00019134,2]
[367493104,1750822252386,-460.0,0.00019134,2]
[367493105,1750822252395,-460.0,0.00019134,2]
[367493106,1750822252404,-460.0,0.00019134,2]
[367493107,1750822252414,-460.0,0.00019134,2]
[367493108,1750822252423,-2120.3,0.00019134,2]
[367493109,1750822252432,-460.0,0.00019135,2]
[367493110,1750822252442,-460.0,0.00019135,2]
[367493111,1750822252451,-460.0,0.00019135,2]
[367493112,1750822252460,-271.97,0.00019135,2]
[367493113,1750822252469,-460.0,0.00019135,2]
[367493114,1750822252479,-1211.94,0.00019135,2]
[367493115,1750822252488,-460.0,0.00019135,2]
[367493116,1750822252497,-460.0,0.00019135,2]
[367493117,1750822252506,-460.0,0.00019135,2]
[367493118,1750822252515,-1100.59,0.00019135,2]
[367493119,1750822252527,-338.54003407,0.00019135,2]
[367493120,1750822252538,-460.0,0.00019135,2]
[367493121,1750822252547,-460.0,0.00019135,2]
[367493122,1750822252557,-746.15,0.00019135,2]
[367493123,1750822252567,-1150.89,0.00019135,2]
[367493124,1750822252576,-460.0,0.00019135,2]
[367493125,1750822252585,-621.42,0.00019135,2]
[367493126,1750822252595,-632.11,0.00019135,2]
[367493127,1750822252604,-460.0,0.00019135,2]
[367493128,1750822252614,-438.99,0.00019136,2]
[367493129,1750822252627,-460.0,0.00019136,2]
[367493130,1750822252636,-409.68954908,0.00019136,2]
[367493131,1750822252645,-460.0,0.00019137,2]
[367493132,1750822252655,-460.0,0.00019137,2]
[367493133,1750822252665,-627.7,0.00019137,2]
[367493134,1750822252675,-171.10283308,0.00019137,2]
[367493135,1750822252684,-160.4161611,0.00019142,2]
[367493136,1750822252694,-501.24090785,0.00019142,2]
[367493137,1750822252704,-500.0,0.00019142,2]
[367493138,1750822252714,-500.36202575,0.00019142,2]
[367493139,1750822252726,-505.32943561,0.00019142,2]
[367493140,1750822252735,-1005.50970793,0.00019174,2]
[367493141,1750822252745,-550.86069672,0.00019174,2]
[367493142,1750822252754,-400.0,0.00019178,2]
[367493143,1750822252764,-400.0,0.00019178,2]
[367493144,1750822252773,-400.0,0.00019178,2]
[367493145,1750822252789,-400.0,0.00019178,2]
[367493146,1750822252798,-255.91,0.00019178,2]
[367493147,1750822252808,-500.0,0.00019178,2]
[367493148,1750822252817,-500.0,0.00019178,2]
[367493149,1750822252827,-500.0,0.00019178,2]
[367493150,1750822252836,-646.30541426,0.00019178,2]
[367493151,1750822252846,-500.0,0.00019178,2]
[367493152,1750822252855,-500.0,0.00019178,2]
[367493153,1750822252864,-500.0,0.00019178,2]
[367493154,1750822252874,-450.0,0.00019178,2]
[367493155,1750822252883,-446.211305,0.00019178,2]
[367493156,1750822252892,-802.4187796,0.00019178,2]
[367493157,1750822252902,-1176.01559857,0.00019195,2]
[367493158,1750822252911,-2000.0,0.00019235,2]
[367493159,1750822252920,-3070.00849568,0.00019279,2]
[367493160,1750822252931,-183.27479876,0.00019307,2]
[367493161,1750822252940,-151.0,0.00019329,2]
[367493162,1750822252952,-497.009463,0.00019329,2]
[367493163,1750822252962,-497.009463,0.00019329,2]
[367493164,1750822252971,-151.0,0.00019329,2]
[367493165,1750822252980,-151.0,0.00019329,2]
[367493166,1750822252990,-151.0,0.00019329,2]
[367493167,1750822252999,-100000.0,0.00019329,2]
[367493168,1750822253008,-1104.74,0.00019407,2]
[367493169,1750822253049,-1267.06,0.00019407,2]
[367493170,1750822253059,-1441.04,0.00019407,2]
[367493171,1750822253067,-460.0,0.00019407,2]
[367493172,1750822253077,-668.7,0.00019407,2]
[367493173,1750822253086,-703.01,0.00019407,2]
[367493174,1750822253095,-1130.96,0.00019408,2]
[367493175,1750822253104,-460.0,0.00019408,2]
[367493176,1750822253114,-893.13,0.00019408,2]
[367493177,1750822253124,-460.0,0.00019408,2]
[367493178,1750822253132,-460.0,0.00019408,2]
[367493179,1750822253142,-460.0,0.00019408,2]
[367493180,1750822253152,-460.0,0.00019408,2]
[367493181,1750822253161,-460.0,0.00019408,2]
[367493182,1750822253170,-306.48,0.00019408,2]
[367493183,1750822253179,-460.0,0.00019408,2]
[367493184,1750822253190,-2120.3,0.00019408,2]
[367493185,1750822253199,-460.0,0.00019409,2]
[367493186,1750822253208,-460.0,0.00019409,2]
[367493187,1750822253218,-460.0,0.00019409,2]
[367493188,1750822253228,-460.0,0.00019409,2]
[367493189,1750822253237,-1211.94,0.00019409,2]
[367493190,1750822253246,-275.47,0.00019409,2]
[367493191,1750822253255,-460.0,0.00019409,2]
[367493192,1750822253264,-460.0,0.00019409,2]
[367493193,1750822253273,-1100.59,0.00019409,2]
[367493194,1750822253283,-460.0,0.00019409,2]
[367493195,1750822253292,-422.66,0.00019409,2]
[367493196,1750822253301,-746.15,0.00019409,2]
[367493197,1750822253310,-151.834653,0.00019409,2]
[367493198,1750822253319,-151.0,0.00019409,2]
[367493199,1750822253328,-151.0,0.00019409,2]
[367493200,1750822253337,-151.0,0.00019409,2]
[367493201,1750822253346,-151.0,0.00019409,2]
[367493202,1750822253355,-151.0,0.00019409,2]
[367493203,1750822253364,-1150.89,0.00019409,2]
[367493204,1750822253374,-460.0,0.00019409,2]
[367493205,1750822253383,-621.42,0.00019409,2]
[367493206,1750822253392,-632.11,0.00019409,2]
[367493207,1750822253401,-460.0,0.00019409,2]
[367493208,1750822253410,-313.37826726,0.0001941,2]
[367493209,1750822253419,-479.5683594,0.00019411,2]
[367493210,1750822253428,-460.0,0.00019411,2]
[367493211,1750822253440,-627.7,0.00019411,2]
[367493212,1750822253449,-660.47637463,0.00019452,2]
[367493213,1750822253458,-3070.00849568,0.00019555,2]
[367493214,1750822253467,-1104.74,0.00019681,2]
[367493215,1750822253476,-1267.06,0.00019681,2]
[367493216,1750822253486,-1441.04,0.00019681,2]
[367493217,1750822253495,-460.0,0.00019681,2]
[367493218,1750822253504,-668.7,0.00019681,2]
[367493219,1750822253513,-703.01,0.00019681,2]
[367493220,1750822253522,-1130.96,0.00019682,2]
[367493221,1750822253531,-460.0,0.00019682,2]
[367493222,1750822253540,-893.13,0.00019682,2]
[367493223,1750822253549,-460.0,0.00019682,2]
[367493224,1750822253558,-460.0,0.00019682,2]
[367493225,1750822253567,-151.0,0.00019682,2]
[367493226,1750822253576,-460.0,0.00019682,2]
[367493227,1750822253585,-460.0,0.00019682,2]
[367493228,1750822253595,-460.0,0.00019682,2]
[367493229,1750822253604,-460.0,0.00019682,2]
[367493230,1750822253613,-2120.3,0.00019682,2]
[367493231,1750822253626,-460.0,0.00019683,2]
[367493232,1750822253635,-535.15,0.00019683,2]
[367493233,1750822253645,-460.0,0.00019683,2]
[367493234,1750822253654,-460.0,0.00019683,2]
[367493235,1750822253663,-1211.94,0.00019683,2]
[367493236,1750822253673,-460.0,0.00019683,2]
[367493237,1750822253683,-460.0,0.00019683,2]
[367493238,1750822253694,-1100.59,0.00019683,2]
[367493239,1750822253703,-460.0,0.00019683,2]
[367493240,1750822253713,-746.15,0.00019683,2]
[367493241,1750822253722,-1150.89,0.00019683,2]
[367493242,1750822253731,-460.0,0.00019683,2]
[367493243,1750822253741,-621.42,0.00019683,2]
[367493244,1750822253751,-632.11,0.00019683,2]
[367493245,1750822253760,-460.0,0.00019683,2]
[367493246,1750822253770,-460.0,0.00019685,2]
[367493247,1750822253779,-627.7,0.00019685,2]
[367493248,1750822253789,-1000.0,0.0001969,2]
[367493249,1750822253798,-2007.89080019,0.00019783,2]
[367493250,1750822253807,-2000.0,0.000198,3]
[367493251,1750822253816,-2000.0,0.000198,4]
[367493252,1750822253825,-151.0,0.00019831,2]
[367493253,1750822253835,-151.0,0.00019831,2]
[367493254,1750822253844,-151.0,0.00019831,2]
[367493255,1750822253854,-151.0,0.00019831,2]
[367493256,1750822253863,-151.0,0.00019831,2]
[367493257,1750822253873,-151.0,0.00019831,2]
[367493258,1750822253883,-151.0,0.00019831,2]
[367493259,1750822253892,-151.0,0.00019831,2]
[367493260,1750822253901,-151.0,0.00019831,2]
[367493261,1750822253911,-3070.00849568,0.00019831,2]
[367493262,1750822253920,-285.42035987,0.00019867,2]
[367493263,1750822253931,-1104.74,0.00019955,2]
[367493264,1750822253941,-1267.06,0.00019955,2]
[367493265,1750822253951,-1441.04,0.00019955,2]
[367493266,1750822253960,-460.0,0.00019955,2]
[367493267,1750822253969,-668.7,0.00019955,2]
[367493268,1750822253979,-703.01,0.00019955,2]
[367493269,1750822253987,-1130.96,0.00019956,2]
[367493270,1750822253997,-460.0,0.00019956,2]
[367493271,1750822254006,-893.13,0.00019956,2]
[367493272,1750822254015,-460.0,0.00019956,2]
[367493273,1750822254024,-460.0,0.00019956,2]
[367493274,1750822254033,-460.0,0.00019956,2]
[367493275,1750822254042,-460.0,0.00019956,2]
[367493276,1750822254051,-335.53,0.00019956,2]
[367493277,1750822254060,-460.0,0.00019956,2]
[367493278,1750822254069,-2120.3,0.00019956,2]
[367493279,1750822254079,-460.0,0.00019957,2]
[367493280,1750822254088,-460.0,0.00019957,2]
[367493281,1750822254097,-460.0,0.00019957,2]
[367493282,1750822254107,-1211.94,0.00019957,2]
[367493283,1750822254116,-460.0,0.00019957,2]
[367493284,1750822254126,-460.0,0.00019957,2]
[367493285,1750822254135,-1100.59,0.00019957,2]
[367493286,1750822254144,-460.0,0.00019957,2]
[367493287,1750822254153,-746.15,0.00019957,2]
[367493288,1750822254162,-1150.89,0.00019957,2]
[367493289,1750822254172,-460.0,0.00019957,2]
[367493290,1750822254181,-621.42,0.00019957,2]
[367493291,1750822254191,-632.11,0.00019957,2]
[367493292,1750822254200,-460.0,0.00019957,2]
[367493293,1750822254209,-460.0,0.00019959,2]
[367493294,1750822254219,-627.7,0.00019959,2]
[367493295,1750822254228,-300.0,0.0002,2]
[367493296,1750822254237,-4000.0,0.0002,4]
[367493297,1750822254247,-177.85,0.000201,2]
[367493298,1750822254256,-3070.00849568,0.00020107,2]
[367493299,1750822254265,-1172.691,0.00020164,2]
[367493300,1750822254275,-197.418357,0.00020187,2]
[367493301,1750822254284,-587.0,0.00020211,2]
[367493302,1750822254294,-1104.74,0.00020229,2]
[367493303,1750822254303,-1267.06,0.00020229,2]
[367493304,1750822254313,-1441.04,0.00020229,2]
[367493305,1750822254323,-460.0,0.00020229,2]
[367493306,1750822254332,-668.7,0.00020229,2]
[367493307,1750822254341,-703.01,0.00020229,2]
[367493308,1750822254351,-1130.96,0.0002023,2]
[367493309,1750822254361,-460.0,0.0002023,2]
[367493310,1750822254371,-893.13,0.0002023,2]
[367493311,1750822254380,-460.0,0.0002023,2]
[367493312,1750822254389,-460.0,0.0002023,2]
[367493313,1750822254399,-460.0,0.0002023,2]
[367493314,1750822254408,-460.0,0.0002023,2]
[367493315,1750822254417,-460.0,0.0002023,2]
[367493316,1750822254427,-2120.3,0.0002023,2]
[367493317,1750822254436,-460.0,0.00020231,2]
[367493318,1750822254445,-552.64,0.00020231,2]
[367493319,1750822254455,-257.34,0.00020231,2]
[367493320,1750822254465,-1211.94,0.00020231,2]
[367493321,1750822254474,-179.7,0.00020231,2]
[367493322,1750822254484,-225.57740439,0.00020231,2]
[367493323,1750822254494,-1100.59,0.00020231,2]
[367493324,1750822254504,-460.0,0.00020231,2]
[367493325,1750822254513,-746.15,0.00020231,2]
[367493326,1750822254522,-1150.89,0.00020231,2]
[367493327,1750822254531,-362.54,0.00020231,2]
[367493328,1750822254541,-621.42,0.00020231,2]
[367493329,1750822254551,-632.11,0.00020231,2]
[367493330,1750822254561,-460.0,0.00020231,2]
[367493331,1750822254570,-460.0,0.00020233,2]
[367493332,1750822254580,-627.7,0.00020233,2]
[367493333,1750822254589,-151.0,0.00020233,2]
[367493334,1750822254598,-151.0,0.00020233,2]
[367493335,1750822254608,-151.0,0.00020233,2]
[367493336,1750822254618,-151.0,0.00020233,2]
[367493337,1750822254629,-434.460958,0.00020233,2]
[367493338,1750822254638,-434.460958,0.00020233,2]
[367493339,1750822254648,-805.37447755,0.00020238,2]
[367493340,1750822254659,-163.27575699,0.00020333,2]
[367493341,1750822254668,-3070.00849568,0.00020383,3]
[367493342,1750822254678,-2000.0,0.000205,5]
[367493343,1750822254688,-2000.0,0.000205,6]
[367493344,1750822254699,-1104.74,0.00020503,2]
[367493345,1750822254710,-1267.06,0.00020503,2]
[367493346,1750822254719,-1441.04,0.00020503,2]
[367493347,1750822254728,-511.52,0.00020503,2]
[367493348,1750822254738,-668.7,0.00020503,2]
[367493349,1750822254748,-703.01,0.00020503,2]
[367493350,1750822254757,-1130.96,0.00020504,2]
[367493351,1750822254767,-460.0,0.00020504,2]
[367493352,1750822254776,-893.13,0.00020504,2]
[367493353,1750822254787,-460.0,0.00020504,2]
[367493354,1750822254797,-460.0,0.00020504,2]
[367493355,1750822254806,-407.96534685,0.00020504,2]
[367493356,1750822254829,-52.03465315,0.00020504,2]
[367493357,1750822254839,-460.0,0.00020504,2]
[367493358,1750822254848,-463.71,0.00020504,2]
[367493359,1750822254858,-1374.25534686,0.00020504,2]
[367493360,1750822255100,-460.0,0.00017214,2]
[367493361,1750822255110,-460.0,0.00017488,2]
[367493362,1750822255120,-473.31769746,0.00017762,2]
[367493363,1750822255129,-746.04465314,0.00020504,2]
[367493364,1750822255139,-460.0,0.00020505,2]
[367493365,1750822255149,-162.85971528,0.00020505,2]
[367493366,1750822255290,-460.0,0.00016943,2]
[367493367,1750822255300,-460.0,0.00016943,2]
[367493368,1750822255309,-500.0,0.00016944,2]
[367493369,1750822255319,-1049.08028472,0.00020505,2]
[367493370,1750822255328,-1100.59,0.00020505,2]
[367493371,1750822255338,-527.28,0.00020505,2]
[367493372,1750822255347,-746.15,0.00020505,2]
[367493373,1750822255357,-1150.89,0.00020505,2]
[367493374,1750822255367,-621.42,0.00020505,2]
[367493375,1750822255376,-632.11,0.00020505,2]
[367493376,1750822255386,-460.0,0.00020505,2]
[367493377,1750822255396,-475.10872837,0.00020507,2]
[367493378,1750822255406,-627.7,0.00020507,2]
[367493379,1750822255416,-500.0,0.00020547,14]
[367493380,1750822255426,-151.0,0.000206,3]
[367493381,1750822255436,-3070.00849568,0.00020659,3]
[367493382,1750822255447,-1104.74,0.00020777,2]
[367493383,1750822255457,-1267.06,0.00020777,2]
[367493384,1750822255466,-1441.04,0.00020777,2]
[367493385,1750822255476,-285.31735174,0.00020777,2]
[367493386,1750822310217,153.71839,0.00023,30]
[367493387,1750822430902,153.71839,0.0002254,30]
[367493389,1750822464373,-300.0,0.00016939,2]
[367493390,1750822464397,-403.3792347,0.0001694,2]
[367493391,1750822464419,-401.39962608,0.0001694,2]
[367493392,1750822464440,-406.81501948,0.0001694,2]
[367493393,1750822464463,-500.0,0.0001694,2]
[367493394,1750822464487,-542.09179801,0.0001694,2]
[367493395,1750822464656,-423.07257964,0.0001694,2]
[367493396,1750822464684,-406.56788349,0.0001694,2]
[367493397,1750822464706,-467.06552536,0.0001694,2]
[367493398,1750822464729,-460.0,0.0001694,2]
[367493399,1750822464752,-460.0,0.0001694,2]
[367493400,1750822464775,-306.58,0.0001694,2]
[367493401,1750822464796,-440.52908842,0.0001694,2]
[367493402,1750822464818,-437.48988262,0.0001694,2]
[367493403,1750822464839,-461.6084152,0.0001694,2]
[367493404,1750822464862,-682.38,0.0001694,2]
[367493405,1750822464885,-460.0,0.0001694,2]
[367493406,1750822464908,-784.08,0.0001694,2]
[367493407,1750822464931,-460.0,0.0001694,2]
[367493408,1750822464953,-460.0,0.0001694,2]
[367493409,1750822464975,-460.0,0.0001694,2]
[367493410,1750822464998,-465.73,0.0001694,2]
[367493411,1750822465020,-460.0,0.00016941,2]
[367493412,1750822465044,-460.0,0.00016941,2]
[367493413,1750822465067,-460.0,0.00016941,2]
[367493414,1750822465090,-460.0,0.00016941,2]
[367493415,1750822465114,-492.31,0.00016941,2]
[367493416,1750822465136,-460.0,0.00016941,2]
[367493417,1750822465158,-460.0,0.00016941,2]
[367493418,1750822465180,-460.0,0.00016941,2]
[367493419,1750822465203,-460.0,0.00016941,2]
[367493420,1750822465225,-439.63,0.00016941,2]
[367493421,1750822465247,-460.0,0.00016941,2]
[367493422,1750822465269,-460.0,0.00016941,2]
[367493423,1750822465292,-460.0,0.00016941,2]
[367493424,1750822465317,-460.0,0.00016941,2]
[367493425,1750822465340,-460.0,0.00016941,2]
[367493426,1750822465363,-460.0,0.00016941,2]
[367493427,1750822465384,-460.0,0.00016941,2]
[367493428,1750822465406,-421.54,0.00016941,2]
[367493429,1750822465429,-1340.86,0.00016941,2]
[367493430,1750822465451,-460.0,0.00016941,2]
[367493431,1750822465473,-460.0,0.00016942,2]
[367493432,1750822465495,-460.0,0.00016942,2]
[367493433,1750822465517,-608.17,0.00016942,2]
[367493434,1750822465542,-460.0,0.00016942,2]
[367493435,1750822465566,-460.0,0.00016942,2]
[367493436,1750822465588,-460.0,0.00016942,2]
[367493437,1750822465610,-460.0,0.00016942,2]
[367493438,1750822465634,-532.42,0.00016942,2]
[367493439,1750822465658,-647.67,0.00016942,2]
[367493440,1750822465687,-460.0,0.00016942,2]
[367493441,1750822465709,-460.0,0.00016942,2]
[367493442,1750822465730,-433.16174355,0.00016942,2]
[367493443,1750822465753,-465.28,0.00016942,2]
[367493444,1750822465777,-460.0,0.00016942,2]
[367493445,1750822465798,-460.0,0.00016942,2]
[367493446,1750822465819,-460.0,0.00016942,2]
[367493447,1750822465842,-460.0,0.00016942,2]
[367493448,1750822465864,-460.0,0.00016942,2]
[367493449,1750822465886,-460.0,0.00016942,2]
[367493450,1750822465908,-460.0,0.00016942,2]
[367493451,1750822465931,-460.0,0.00016942,2]
[367493452,1750822465954,-753.32,0.00016942,2]
[367493453,1750822465978,-771.95,0.00016942,2]
[367493454,1750822465998,-556.31425497,0.00016942,2]
[367493455,1750822466025,-460.0,0.00016942,2]
[367493456,1750822466047,-460.0,0.00016942,2]
[367493457,1750822466069,-721.77,0.00016942,2]
[367493458,1750822466091,-435.1240676,0.00016942,2]
[367493459,1750822466114,-472.1,0.00016942,2]
[367493460,1750822466136,-460.0,0.00016943,2]
[367493461,1750822466157,-460.0,0.00016943,2]
[367493462,1750822466178,-447.64003237,0.00016943,2]
[367493463,1750822466201,-460.0,0.00016943,2]
[367493464,1750822466223,-460.0,0.00016943,2]
[367493465,1750822466246,-460.0,0.00016943,2]
[367493466,1750822466267,-499.13799166,0.00016943,2]
[367493467,1750822466290,-505.45890377,0.00016943,2]
[367493468,1750822466312,-460.0,0.00016943,2]
[367493469,1750822466333,-404.99636699,0.00016943,2]
[367493470,1750822466354,-460.83812807,0.00016943,2]
[367493471,1750822466374,-290.0,0.00016943,2]
[367493472,1750822466396,-275.02419092,0.00016943,2]
[367493473,1750822466417,-460.0,0.00016943,2]
[367493474,1750822466438,-241.33062452,0.00016943,2]
[367493475,1750822466459,-442.30874463,0.00016943,2]
[367493476,1750822466481,-462.59479522,0.00016943,2]
[367493477,1750822466503,-460.0,0.00016944,2]
[367493478,1750822466525,-460.0,0.00016944,2]
[367493479,1750822466546,-460.0,0.00016944,2]
[367493480,1750822466567,-460.0,0.00016944,2]
[367493481,1750822466588,-460.0,0.00016944,2]
[367493482,1750822466608,-401.90242411,0.00016944,2]
[367493483,1750822466629,-480.62471395,0.00016944,2]
[367493484,1750822466650,-460.0,0.00016944,2]
[367493485,1750822466674,-460.0,0.00016944,2]
[367493486,1750822466695,-163.09734854,0.00017115,2]
[367493487,1750822466717,-471.80095257,0.00017214,2]
[367493488,1750822466742,-682.38,0.00017214,2]
[367493489,1750822466764,-784.08,0.00017214,2]
[367493490,1750822466786,-460.0,0.00017214,2]
[367493491,1750822466809,-465.73,0.00017214,2]
[367493492,1750822466833,-460.0,0.00017215,2]
[367493493,1750822466854,-465.03,0.00017215,2]
[367493494,1750822466877,-460.0,0.00017215,2]
[367493495,1750822466900,-492.31,0.00017215,2]
[367493496,1750822466923,-460.0,0.00017215,2]
[367493497,1750822466944,-372.38530262,0.00017215,2]
[367493498,1750822466966,-460.0,0.00017215,2]
[367493499,1750822466988,-460.0,0.00017215,2]
[367493500,1750822467011,-460.0,0.00017215,2]
[367493501,1750822467034,-460.0,0.00017215,2]
[367493502,1750822467058,-1340.86,0.00017215,2]
[367493503,1750822467080,-460.0,0.00017215,2]
[367493504,1750822467103,-460.0,0.00017216,2]
[367493505,1750822467125,-608.17,0.00017216,2]
[367493506,1750822467148,-460.0,0.00017216,2]
[367493507,1750822467170,-490.59,0.00017216,2]
[367493508,1750822467193,-647.67,0.00017216,2]
[367493509,1750822467216,-460.0,0.00017216,2]
[367493510,1750822467238,-465.28,0.00017216,2]
[367493511,1750822467259,-460.0,0.00017216,2]
[367493512,1750822467281,-544.55752826,0.00017216,2]
[367493513,1750822467302,-460.0,0.00017216,2]
[367493514,1750822467324,-460.0,0.00017216,2]
[367493515,1750822467347,-460.0,0.00017216,2]
[367493516,1750822467369,-753.32,0.00017216,2]
[367493517,1750822467393,-771.95,0.00017216,2]
[367493518,1750822467415,-721.77,0.00017216,2]
[367493519,1750822467439,-472.1,0.00017216,2]
[367493520,1750822467460,-460.0,0.00017217,2]
[367493521,1750822467481,-460.0,0.00017217,2]
[367493522,1750822467612,-460.0,0.00017218,2]
[367493523,1750822467633,-470.878404,0.00017218,2]